bitfinex/quotes_SOLUSD_20251002
["timestamp","ask_amount","ask_price","bid_price","bid_amount"]
[1759375190380,42.80079835,223.45,223.44,2.97942761]
[1759375190575,31.64,223.45,223.44,2.97942761]
[1759375192197,31.64,223.45,223.44,2.35942761]
[1759375192590,31.64,223.45,223.43,2.55942761]
[1759375192902,31.64,223.45,223.43,3.17942761]
[1759375193406,31.64,223.45,223.44,2.97942761]
[1759375193602,10.87647521,223.48,223.44,2.97942761]
[1759375193778,137.3742979,223.5,223.47,2.35942761]
[1759375193978,42.51647521,223.49,223.47,2.35942761]
[1759375194184,42.51647521,223.49,223.48,2.35942761]
[1759375194380,42.51647521,223.49,223.45,0.62]
[1759375194676,4.75835367,223.52,223.47,2.35942761]
[1759375194889,42.80079835,223.51,223.47,2.35942761]
[1759375195087,42.51647521,223.51,223.47,2.35942761]
[1759375195297,10.87647521,223.53,223.49,2.35942761]
[1759375195500,31.64,223.52,223.49,2.35942761]
[1759375195894,42.51647521,223.57,223.51,2.35942761]
[1759375196095,42.51647521,223.57,223.5,0.62]
[1759375196096,31.64,223.57,223.56,2.35942761]
[1759375196702,4.47227191,223.6,223.56,2.35942761]
[1759375196891,31.64,223.59,223.58,2.35942761]
[1759375197090,31.64,223.59,223.57,2.35942761]
[1759375197507,42.51647521,223.59,223.58,2.35942761]
[1759375198204,31.64,223.59,223.58,2.97942761]
[1759375198789,11.16079835,223.61,223.58,2.97942761]
[1759375198989,11.16079835,223.61,223.6,2.35942761]
[1759375199290,42.80079835,223.61,223.6,2.35942761]
[1759375200303,15.34874712,223.6,223.59,2.35942761]
[1759375200617,15.34874712,223.6,223.58,2.35942761]
[1759375200796,31.64,223.59,223.58,2.35942761]
[1759375201308,0.7,223.63,223.58,2.35942761]
[1759375201528,31.64,223.64,223.62,2.35942761]
[1759375201715,4.47065931,223.69,223.63,2.97942761]
[1759375202012,41.67028942,223.66,223.65,2.35942761]
[1759375202195,10.03028942,223.66,223.65,2.97942761]
[1759375203814,31.62,223.7,223.65,2.97942761]
[1759375204127,42.49647521,223.7,223.69,2.35942761]
[1759375204293,31.62,223.7,223.69,2.35942761]
[1759375204492,31.62,223.72,223.69,2.35942761]
[1759375204706,31.62,223.72,223.71,2.35942761]
[1759375205020,31.62,223.75,223.71,2.97942761]
[1759375205191,42.49647521,223.75,223.74,2.35942761]
[1759375205621,42.49647521,223.75,223.71,0.62]
[1759375205802,31.62,223.75,223.74,2.35942761]
[1759375206000,21.0,223.82,223.74,2.97942761]
[1759375206001,0.2,223.82,223.74,2.97942761]
[1759375206207,0.2,223.82,223.81,2.35942761]
[1759375206412,0.2,223.82,223.81,23.15942761]
[1759375206915,0.2,223.82,223.81,2.35942761]
[1759375206916,0.9,223.82,223.81,2.35942761]
[1759375207106,0.9,223.82,223.8,2.35942761]
[1759375207425,0.9,223.82,223.81,2.35942761]
[1759375207803,1.18432314,223.82,223.76,20.8]
[1759375207994,0.7,223.81,223.77,2.35942761]
[1759375208196,0.7,223.8,223.77,5.67402019]
[1759375208523,0.7,223.8,223.78,5.67402019]
[1759375209220,0.7,223.8,223.77,5.67402019]
[1759375209221,5.16833149,223.8,223.77,5.67402019]
[1759375209397,0.7,223.79,223.77,5.67402019]
[1759375210306,0.7,223.79,223.76,5.67402019]
[1759375211720,4.46833149,223.8,223.77,5.67402019]
[1759375211926,0.7,223.81,223.77,5.67402019]
[1759375212107,10.87647521,223.81,223.78,5.67402019]
[1759375212648,0.7,223.8,223.78,5.67402019]
[1759375212800,15.3446155,223.81,223.78,5.67402019]
[1759375213424,15.3446155,223.81,223.77,5.67402019]
[1759375214003,16.0446155,223.81,223.77,5.67402019]
[1759375214212,11.57647521,223.81,223.78,5.67402019]
[1759375214708,16.04458124,223.81,223.78,5.67402019]
[1759375215015,11.57647521,223.81,223.78,5.67402019]
[1759375215321,0.48432314,223.82,223.72,25.26974785]
[1759375215322,0.2,223.82,223.81,4.46807559]
[1759375215523,0.2,223.82,223.81,10.14209578]
[1759375217037,0.2,223.82,223.81,41.80209578]
[1759375218709,0.2,223.82,223.81,10.14209578]
[1759375218907,0.2,223.82,223.81,41.78209578]
[1759375220711,0.2,223.82,223.81,10.14209578]
[1759375221131,0.2,223.82,223.81,41.76209578]
[1759375224711,0.2,223.84,223.83,20.8]
[1759375224916,0.2,223.84,223.83,26.47402019]
[1759375227052,0.2,223.84,223.83,30.94169655]
[1759375228647,0.2,223.84,223.83,56.84767636]
[1759375228826,0.2,223.84,223.83,62.52169655]
[1759375229230,0.2,223.84,223.83,76.13249321]
[1759375230324,0.89,223.89,223.83,83.97784076]
[1759375230519,0.89,223.89,223.88,2.35017684]
[1759375234152,0.89,223.89,223.88,6.81685541]
[1759375234358,0.89,223.89,223.88,5.97042662]
[1759375234723,0.89,223.89,223.88,1.50374805]
[1759375235167,0.89,223.89,223.88,33.08374805]
[1759375239349,0.89,223.89,223.88,1.50374805]
[1759375241554,0.89,223.89,223.83,38.8783059]
[1759375241866,0.69,223.88,223.87,1.50374805]
[1759375250840,0.2,223.89,223.87,5.97062412]
[1759375251058,0.2,223.89,223.88,33.08374805]
[1759375252174,0.2,223.89,223.88,37.55042662]
[1759375252731,0.89,223.89,223.88,33.08374805]
[1759375253170,0.2,223.89,223.88,33.08374805]
[1759375253475,0.2,223.89,223.88,37.55042662]
[1759375253770,0.89,223.89,223.88,22.30374805]
[1759375253973,0.89,223.89,223.88,53.86374805]
[1759375254172,0.2,223.89,223.88,53.86374805]
[1759375254372,0.88,223.89,223.88,53.86374805]
[1759375254557,0.2,223.89,223.88,53.86374805]
[1759375254948,0.2,223.89,223.88,58.33042662]
[1759375255554,0.2,223.89,223.88,53.86374805]
[1759375255875,0.88,223.89,223.88,53.86374805]
[1759375256077,0.88,223.89,223.88,22.30374805]
[1759375256376,0.88,223.89,223.88,53.86374805]
[1759375256979,0.88,223.89,223.88,22.30374805]
[1759375257275,0.88,223.89,223.88,1.50374805]
[1759375257782,0.88,223.89,223.87,52.36]
[1759375257960,0.2,223.89,223.88,1.50374805]
[1759375258562,0.88,223.89,223.85,4.46723881]
[1759375258766,0.2,223.89,223.88,1.50374805]
[1759375261495,0.88,223.89,223.88,1.50374805]
[1759375265475,0.2,223.89,223.88,1.50374805]
[1759375265659,0.2,223.89,223.88,5.97042662]
[1759375266860,0.2,223.89,223.88,37.53042662]
[1759375274906,0.1,223.93,223.88,116.73042662]
[1759375275074,0.1,223.93,223.91,20.8]
[1759375275274,0.1,223.94,223.92,39.07874025]
[1759375275576,0.1,223.94,223.93,1.50374805]
[1759375276919,0.1,223.94,223.93,5.96942928]
[1759375277422,0.78,223.94,223.93,37.52942928]
[1759375277625,0.78,223.94,223.91,25.26597389]
[1759375277795,0.1,223.94,223.93,33.06374805]
[1759375278412,0.78,223.94,223.93,33.06374805]
[1759375279109,0.78,223.94,223.93,1.50374805]
[1759375280815,5.24548182,223.94,223.93,1.50374805]
[1759375280991,0.78,223.94,223.93,1.50374805]
[1759375281527,10.87647521,223.93,223.83,19.0877558]
[1759375281833,5.24548182,223.94,223.87,1.50374805]
[1759375281834,10.87647521,223.91,223.87,1.50374805]
[1759375282121,0.71,223.9,223.89,1.50374805]
[1759375283993,0.71,223.9,223.86,31.56]
[1759375284197,11.16079835,223.93,223.88,1.50374805]
[1759375284198,10.87647521,223.91,223.88,1.50374805]
[1759375284510,0.28432314,223.9,223.83,38.65997964]
[1759375284708,0.28432314,223.88,223.75,5.47695914]
[1759375284906,0.28432314,223.88,223.69,29.71081424]
[1759375284907,10.87647521,223.85,223.79,1.50374805]
[1759375285224,10.87647521,223.83,223.79,1.50374805]
[1759375285524,0.69,223.82,223.79,1.50374805]
[1759375285819,0.69,223.81,223.79,1.50374805]
[1759375286020,0.69,223.8,223.78,20.8]
[1759375287119,0.69,223.8,223.78,22.30374805]
[1759375289414,0.69,223.82,223.79,1.50374805]
[1759375289617,0.69,223.81,223.79,1.50374805]
[1759375289796,0.69,223.81,223.78,22.30374805]
[1759375289997,0.69,223.8,223.78,22.30374805]
[1759375293728,0.28432314,223.85,223.79,1.50374805]
[1759375294033,10.87647521,223.83,223.79,1.50374805]
[1759375294207,0.69,223.82,223.79,2.35217651]
[1759375294531,0.69,223.81,223.8,2.35217651]
[1759375297626,0.69,223.81,223.78,23.15217651]
[1759375297830,2.63649965,223.85,223.78,23.15217651]
[1759375297831,0.69,223.8,223.78,23.15217651]
[1759375298009,0.69,223.8,223.78,2.35217651]
[1759375299246,0.69,223.82,223.79,2.35217651]
[1759375299441,0.69,223.82,223.76,52.36]
[1759375299442,0.69,223.84,223.81,2.35217651]
[1759375299735,11.01863678,223.88,223.82,2.35217651]
[1759375300136,10.87647521,223.86,223.82,2.35217651]
[1759375300434,0.69,223.85,223.82,2.35217651]
[1759375300616,0.69,223.84,223.82,2.35217651]
[1759375300815,0.69,223.83,223.82,2.35217651]
[1759375301033,0.69,223.83,223.81,2.35217651]
[1759375301235,0.69,223.82,223.81,2.35217651]
[1759375301619,15.34364102,223.86,223.81,2.35217651]
[1759375301936,0.69,223.84,223.82,2.35217651]
[1759375302132,0.69,223.83,223.82,2.35217651]
[1759375303326,10.87647521,223.86,223.82,2.35217651]
[1759375303521,10.87647521,223.86,223.84,2.35217651]
[1759375303833,0.69,223.86,223.84,2.35217651]
[1759375304022,0.69,223.86,223.8,4.46827524]
[1759375304023,0.69,223.85,223.82,2.35217651]
[1759375304215,0.69,223.84,223.82,2.35217651]
[1759375304419,10.87647521,223.87,223.83,2.35217651]
[1759375305139,5.15709049,223.86,223.83,2.35217651]
[1759375305336,0.69,223.85,223.84,2.35217651]
[1759375305736,15.34340094,223.87,223.83,2.35217651]
[1759375305939,0.69,223.86,223.83,2.35217651]
[1759375306129,0.69,223.85,223.83,2.35217651]
[1759375306332,0.69,223.84,223.83,2.35217651]
[1759375309449,5.15751434,223.84,223.77,4.46881619]
[1759375309639,0.69,223.83,223.8,2.35217651]
[1759375309950,0.69,223.82,223.79,2.35217651]
[1759375310145,0.69,223.81,223.79,2.35217651]
[1759375310735,0.69,223.81,223.77,31.56]
[1759375310940,0.69,223.81,223.79,2.35217651]
[1759375312050,0.69,223.81,223.78,2.35217651]
[1759375312255,0.69,223.81,223.77,4.4688114]
[1759375312440,0.69,223.8,223.78,2.35217651]
[1759375312626,0.69,223.8,223.71,3.77923849]
[1759375312627,0.69,223.8,223.7,11.17547094]
[1759375312823,0.69,223.79,223.75,2.35217651]
[1759375313033,0.69,223.78,223.75,2.35217651]
[1759375313539,0.69,223.77,223.74,23.15217651]
[1759375314459,0.69,223.77,223.75,2.35217651]
[1759375314842,0.68,223.76,223.75,23.15217651]
[1759375315445,0.68,223.79,223.75,2.35217651]
[1759375315650,0.68,223.78,223.75,2.35217651]
[1759375316359,0.68,223.78,223.75,23.15217651]
[1759375318564,4.46828446,223.8,223.76,2.35217651]
[1759375318733,0.68,223.77,223.76,2.35217651]
[1759375319558,10.87647521,223.81,223.75,20.8]
[1759375319728,10.87647521,223.81,223.76,2.35217651]
[1759375319729,0.68,223.8,223.76,2.35217651]
[1759375319931,0.68,223.79,223.76,2.35217651]
[1759375320162,0.68,223.78,223.76,2.35217651]
[1759375320351,0.68,223.77,223.73,2.35217651]
[1759375320657,0.68,223.76,223.7,2.35217651]
[1759375320859,10.87647521,223.81,223.75,2.35217651]
[1759375321159,10.87647521,223.81,223.78,2.35217651]
[1759375321160,0.68,223.8,223.78,2.35217651]
[1759375321364,0.68,223.79,223.73,4.46967326]
[1759375321540,0.68,223.79,223.78,2.35217651]
[1759375322941,10.87647521,223.81,223.78,2.35217651]
[1759375323142,0.68,223.8,223.79,2.35217651]
[1759375324168,0.68,223.8,223.78,2.35217651]
[1759375324459,0.68,223.79,223.78,2.35217651]
[1759375325844,0.68,223.79,223.77,2.35217651]
[1759375326048,0.68,223.78,223.77,2.35217651]
[1759375327167,0.68,223.78,223.73,79.2]
[1759375327168,0.28432314,223.76,223.68,20.8]
[1759375327363,0.68,223.75,223.7,2.35217651]
[1759375327581,0.68,223.74,223.7,2.35217651]
[1759375327754,0.68,223.73,223.69,2.35217651]
[1759375328246,11.16079835,223.74,223.69,2.35217651]
[1759375328568,5.14986129,223.73,223.69,2.35217651]
[1759375328740,0.68,223.72,223.69,2.35217651]
[1759375329070,0.68,223.71,223.69,2.35217651]
[1759375329469,0.68,223.7,223.69,2.35217651]
[1759375329647,0.68,223.7,223.68,23.15217651]
[1759375329836,0.68,223.69,223.68,23.15217651]
[1759375330039,0.68,223.73,223.68,2.35217651]
[1759375330243,10.87647521,223.73,223.72,2.35217651]
[1759375330437,0.68,223.77,223.73,4.46967326]
[1759375330652,0.68,223.77,223.76,2.35217651]
[1759375333752,0.68,223.77,223.73,4.46967326]
[1759375333753,0.68,223.77,223.73,2.35217651]
[1759375333958,0.68,223.76,223.72,2.35217651]
[1759375334169,0.14216157,223.78,223.72,2.35217651]
[1759375334170,0.68,223.75,223.72,2.35217651]
[1759375334366,0.68,223.74,223.72,2.35217651]
[1759375334574,0.68,223.73,223.71,2.35217651]
[1759375335358,0.68,223.73,223.69,25.27042896]
[1759375335680,0.68,223.73,223.71,2.35217651]
[1759375336576,4.46927397,223.75,223.71,2.35217651]
[1759375336878,10.87647521,223.72,223.7,2.35217651]
[1759375337078,0.68,223.71,223.67,2.35217651]
[1759375337280,0.68,223.7,223.67,2.35217651]
[1759375337785,10.87647521,223.68,223.62,4.47168486]
[1759375337950,0.96432314,223.71,223.67,2.35217651]
[1759375338154,11.55647521,223.7,223.67,2.35217651]
[1759375338366,0.68,223.69,223.67,2.35217651]
[1759375339077,0.28432314,223.71,223.68,2.35217651]
[1759375339078,10.87647521,223.71,223.68,2.35217651]
[1759375339275,10.87647521,223.72,223.69,2.35217651]
[1759375339461,0.68,223.71,223.68,2.35217651]
[1759375339851,0.68,223.7,223.64,20.8]
[1759375340063,0.68,223.7,223.68,2.35217651]
[1759375340560,0.68,223.69,223.68,2.35217651]
[1759375340976,0.68,223.74,223.68,6.82276002]
[1759375341152,0.68,223.73,223.68,25.27058351]
[1759375341354,0.71,223.72,223.7,2.35217651]
[1759375341573,0.71,223.71,223.68,2.35217651]
[1759375341775,0.71,223.7,223.68,2.35217651]
[1759375341963,0.71,223.7,223.65,20.8]
[1759375341964,0.71,223.7,223.69,2.35217651]
[1759375344785,4.47009817,223.71,223.68,2.35217651]
[1759375344968,4.47009817,223.71,223.65,20.8]
[1759375344969,11.53647521,223.7,223.67,2.35217651]
[1759375345164,0.66,223.69,223.67,2.35217651]
[1759375345479,10.87647521,223.71,223.68,2.35217651]
[1759375345663,0.66,223.69,223.68,2.35217651]
[1759375347394,0.66,223.69,223.65,25.27116938]
[1759375347556,0.66,223.69,223.68,2.35217651]
[1759375350867,0.66,223.69,223.65,20.8]
[1759375351181,0.66,223.69,223.66,2.35217651]
[1759375351182,0.66,223.68,223.66,2.35217651]
[1759375351383,0.66,223.68,223.67,2.35217651]
[1759375353287,0.66,223.68,223.66,2.35217651]
[1759375354097,10.87647521,223.69,223.66,2.35217651]
[1759375354274,10.87647521,223.69,223.67,2.35217651]
[1759375354475,0.28432314,223.7,223.67,2.35217651]
[1759375354676,0.66,223.69,223.67,2.35217651]
[1759375354895,0.28432314,223.71,223.67,2.35217651]
[1759375355200,0.66,223.68,223.67,2.35217651]
[1759375356276,0.66,223.68,223.67,1.50711037]
[1759375361086,0.66,223.68,223.66,1.50711037]
[1759375361413,0.66,223.67,223.66,1.50711037]
[1759375362709,0.66,223.67,223.65,1.50711037]
[1759375363703,0.66,223.67,223.66,1.50711037]
[1759375365785,0.66,223.69,223.66,1.50711037]
[1759375365979,11.16079835,223.71,223.66,1.50711037]
[1759375366216,10.87647521,223.69,223.66,1.50711037]
[1759375366397,0.66,223.68,223.66,1.50711037]
[1759375370017,0.66,223.68,223.66,5.97814238]
[1759375372905,10.87647521,223.72,223.67,5.97798263]
[1759375373098,0.66,223.71,223.69,1.50711037]
[1759375373311,0.66,223.71,223.7,1.50711037]
[1759375374020,0.66,223.71,223.69,1.50711037]
[1759375374224,0.67,223.7,223.68,1.50711037]
[1759375375319,0.67,223.7,223.68,5.97778275]
[1759375375813,0.67,223.7,223.69,1.50711037]
[1759375378132,0.67,223.7,223.69,5.97758289]
[1759375378427,0.67,223.72,223.69,5.97758289]
[1759375378723,11.83079835,223.73,223.7,1.50711037]
[1759375379020,10.87647521,223.74,223.72,1.50711037]
[1759375379221,3.00445377,223.75,223.73,1.50711037]
[1759375379425,0.67,223.76,223.74,1.50711037]
[1759375379722,11.54647521,223.79,223.75,1.50711037]
[1759375379912,0.67,223.79,223.78,1.50711037]
[1759375380125,0.67,223.8,223.78,1.50711037]
[1759375380417,3.00445377,223.83,223.79,1.50711037]
[1759375380624,10.87647521,223.81,223.79,1.50711037]
[1759375380921,0.67,223.8,223.78,1.50711037]
[1759375381113,10.87647521,223.81,223.78,1.50711037]
[1759375381114,0.67,223.79,223.78,1.50711037]
[1759375382320,0.67,223.79,223.77,5.97591227]
[1759375382626,11.54647521,223.81,223.77,5.97591227]
[1759375382810,0.67,223.8,223.77,5.97591227]
[1759375383004,0.67,223.8,223.78,1.50711037]
[1759375383821,10.87647521,223.78,223.64,110.36079835]
[1759375384007,10.87647521,223.76,223.72,1.50711037]
[1759375384201,0.67,223.75,223.71,1.50711037]
[1759375384530,0.67,223.74,223.72,1.50711037]
[1759375385033,11.83079835,223.77,223.73,1.50711037]
[1759375385207,0.28432314,223.77,223.73,1.50711037]
[1759375385406,0.67,223.76,223.73,1.50711037]
[1759375385734,0.67,223.78,223.76,4.469074]
[1759375386027,0.67,223.78,223.76,5.97618437]
[1759375386403,0.67,223.8,223.77,1.50711037]
[1759375386626,0.67,223.79,223.78,1.50711037]
[1759375387299,0.67,223.81,223.78,1.50711037]
[1759375387521,0.67,223.8,223.77,1.50711037]
[1759375388329,0.67,223.8,223.77,5.97590255]
[1759375389120,0.67,223.8,223.77,4.46879218]
[1759375389324,0.67,223.8,223.74,11.17345429]
[1759375389325,0.67,223.79,223.76,1.50711037]
[1759375389605,0.67,223.78,223.77,1.50711037]
[1759375389806,0.67,223.8,223.77,1.50711037]
[1759375390006,0.67,223.79,223.77,1.50711037]
[1759375390317,0.95432314,223.82,223.78,5.97571618]
[1759375390499,0.67,223.81,223.79,1.50711037]
[1759375390700,0.67,223.8,223.75,1.50711037]
[1759375390922,1.79143351,223.82,223.74,1.50711037]
[1759375390923,11.54647521,223.79,223.74,1.50711037]
[1759375391232,0.67,223.78,223.74,1.50711037]
[1759375391417,0.67,223.77,223.75,1.50711037]
[1759375392863,0.67,223.77,223.75,5.97636256]
[1759375394029,0.67,223.77,223.76,1.50711037]
[1759375394331,0.67,223.8,223.76,5.97618437]
[1759375394634,0.95432314,223.82,223.79,1.50711037]
[1759375394802,0.95432314,223.82,223.76,15.64175901]
[1759375395008,0.67,223.81,223.79,1.50711037]
[1759375395320,11.83079835,223.83,223.79,1.50711037]
[1759375395522,0.67,223.82,223.79,1.50711037]
[1759375396030,0.67,223.82,223.8,1.50711037]
[1759375396408,11.16079835,223.83,223.81,1.50711037]
[1759375396409,10.87647521,223.83,223.81,1.50711037]
[1759375396718,10.87647521,223.83,223.77,11.17218572]
[1759375396719,0.67,223.84,223.82,1.50711037]
[1759375397033,10.87647521,223.85,223.83,1.50711037]
[1759375397334,12.66790872,223.84,223.73,4.46967326]
[1759375397515,11.16079835,223.81,223.75,1.50711037]
[1759375397723,0.67,223.8,223.77,1.50711037]
[1759375397917,0.67,223.8,223.73,83.66967326]
[1759375397918,0.67,223.8,223.78,1.50711037]
[1759375398104,0.28432314,223.81,223.78,1.50711037]
[1759375398309,0.67,223.79,223.78,1.50711037]
[1759375398835,0.67,223.79,223.77,1.50711037]
[1759375400748,10.87647521,223.81,223.74,15.64315723]
[1759375400930,11.54647521,223.81,223.79,1.50711037]
[1759375401242,0.67,223.8,223.78,1.50711037]
[1759375401416,11.54647521,223.8,223.79,1.50711037]
[1759375401738,11.54647521,223.8,223.78,1.50711037]
[1759375401942,0.67,223.79,223.78,1.50711037]
[1759375402112,0.28432314,223.82,223.78,1.50711037]
[1759375402309,0.67,223.81,223.78,1.50711037]
[1759375402513,0.67,223.8,223.78,1.50711037]
[1759375402928,0.67,223.79,223.77,1.50711037]
[1759375403312,0.67,223.79,223.75,4.46912099]
[1759375403313,10.87647521,223.82,223.78,1.50711037]
[1759375403518,0.67,223.81,223.78,1.50711037]
[1759375403728,0.71,223.8,223.78,1.50711037]
[1759375404441,0.71,223.79,223.77,1.50711037]
[1759375404626,0.71,223.79,223.76,1.50711037]
[1759375405018,0.71,223.78,223.76,1.50711037]
[1759375405218,0.71,223.78,223.75,20.8]
[1759375405419,0.71,223.78,223.76,1.50711037]
[1759375405817,0.71,223.77,223.76,1.50711037]
[1759375407551,11.58647521,223.77,223.72,5.9767881]
[1759375407718,0.71,223.76,223.72,5.9767881]
[1759375408156,10.87647521,223.77,223.72,5.9767881]
[1759375408450,0.71,223.76,223.73,1.50711037]
[1759375409152,10.87647521,223.86,223.77,20.8]
[1759375409360,0.71,223.85,223.83,1.50711037]
[1759375409651,0.71,223.84,223.77,20.8]
[1759375409858,1.50711037,223.81,223.72,4.46972131]
[1759375410025,10.87647521,223.79,223.73,52.3]
[1759375410215,0.71,223.78,223.73,52.3]
[1759375410432,0.71,223.77,223.74,1.50711037]
[1759375411549,10.87647521,223.75,223.66,1.78982929]
[1759375411770,0.28432314,223.77,223.65,11.17771638]
[1759375411771,0.71,223.74,223.7,1.50711037]
[1759375411960,12.66790872,223.77,223.7,1.50711037]
[1759375412157,0.71,223.73,223.7,1.50711037]
[1759375412372,0.71,223.72,223.7,1.50711037]
[1759375412852,11.16079835,223.75,223.69,1.50711037]
[1759375413057,0.71,223.71,223.69,1.50711037]
[1759375413243,11.16079835,223.75,223.68,22.30711037]
[1759375413244,0.71,223.7,223.68,22.30711037]
[1759375413443,0.71,223.72,223.69,1.50711037]
[1759375413745,15.63008505,223.75,223.69,1.50711037]
[1759375413746,0.71,223.71,223.69,1.50711037]
[1759375413948,0.71,223.7,223.69,1.50711037]
[1759375414149,10.87647521,223.73,223.69,1.50711037]
[1759375414558,0.71,223.72,223.69,1.50711037]
[1759375414773,0.71,223.76,223.72,20.8]
[1759375415065,0.71,223.75,223.73,1.50711037]
[1759375415675,0.71,223.75,223.74,1.50711037]
[1759375416342,0.28432314,223.77,223.74,2.35346165]
[1759375416542,10.87647521,223.76,223.74,2.35346165]
[1759375416769,0.71,223.76,223.73,2.35346165]
[1759375417470,0.71,223.76,223.73,6.82308236]
[1759375417642,0.71,223.76,223.74,2.35346165]
[1759375418869,11.16079835,223.78,223.73,4.46962071]
[1759375419049,4.75305348,223.78,223.73,2.35346165]
[1759375419250,0.71,223.77,223.73,2.35346165]
[1759375419451,0.71,223.76,223.73,2.35346165]
[1759375420474,0.71,223.75,223.74,2.35346165]
[1759375423657,5.17937178,223.75,223.7,2.35346165]
[1759375423864,0.99432314,223.74,223.69,79.2]
[1759375424053,0.71,223.73,223.7,2.35346165]
[1759375424255,0.71,223.72,223.67,20.8]
[1759375424452,0.71,223.72,223.7,2.35346165]
[1759375425156,0.71,223.72,223.71,2.35346165]
[1759375426950,0.71,223.72,223.7,2.35346165]
[1759375427167,0.71,223.71,223.69,2.35346165]
[1759375427477,0.71,223.71,223.64,121.87868002]
[1759375427478,0.71,223.71,223.7,2.35346165]
[1759375427655,0.28432314,223.74,223.7,2.35346165]
[1759375427846,0.71,223.72,223.71,2.35346165]
[1759375429759,0.71,223.72,223.7,2.35346165]
[1759375430075,0.71,223.71,223.7,2.35346165]
[1759375430458,0.71,223.71,223.66,4.47107216]
[1759375430662,0.71,223.71,223.7,2.35346165]
[1759375431769,0.71,223.73,223.7,2.35346165]
[1759375432079,0.71,223.72,223.68,4.47058535]
[1759375432259,0.71,223.72,223.71,2.35346165]
[1759375432461,0.71,223.72,223.68,4.47058535]
[1759375432658,0.71,223.72,223.71,2.35346165]
[1759375433078,0.28432314,223.74,223.71,2.35346165]
[1759375433280,11.58647521,223.76,223.73,2.35346165]
[1759375433582,0.71,223.76,223.75,2.35346165]
[1759375434189,0.67,223.76,223.75,2.35346165]
[1759375436371,0.67,223.76,223.7,4.47027268]
[1759375436590,0.67,223.76,223.75,2.35346165]
[1759375439482,39.39589789,223.77,223.75,2.35346165]
[1759375439688,7.89589789,223.77,223.76,2.35346165]
[1759375440878,7.89589789,223.77,223.75,2.35346165]
[1759375440879,8.56589789,223.77,223.75,2.35346165]
[1759375441060,0.67,223.76,223.75,2.35346165]
[1759375442291,0.67,223.76,223.72,4.46977834]
[1759375442474,0.67,223.76,223.75,2.35346165]
[1759375442994,7.89589789,223.77,223.75,2.35346165]
[1759375443290,7.89589789,223.77,223.76,2.35346165]
[1759375445976,7.89589789,223.77,223.72,11.17468263]
[1759375446292,7.89589789,223.77,223.76,2.35346165]
[1759375447096,8.56589789,223.77,223.76,2.35346165]
[1759375447979,8.56589789,223.77,223.71,4.47007286]
[1759375448193,8.56589789,223.77,223.76,2.35346165]
[1759375448490,7.89589789,223.77,223.76,2.35346165]
[1759375449865,7.89589789,223.77,223.75,4.46923297]
[1759375450061,7.89589789,223.77,223.76,2.35346165]
[1759375452496,8.56589789,223.77,223.76,2.35346165]
[1759375453579,7.89589789,223.77,223.76,2.35346165]
[1759375454789,7.89589789,223.77,223.76,2.35346165]
[1759375455779,7.89589789,223.77,223.76,6.82253565]
[1759375458774,7.89589789,223.77,223.76,2.35346165]
[1759375459704,7.89589789,223.77,223.75,4.46925798]
[1759375459705,8.56589789,223.77,223.75,4.46925798]
[1759375459903,7.89589789,223.77,223.76,2.35346165]
[1759375460377,8.56589789,223.77,223.76,2.35346165]
[1759375460702,7.89589789,223.77,223.76,6.82253565]
[1759375461195,7.89589789,223.77,223.76,4.469074]
[1759375461365,8.56589789,223.77,223.76,6.82253565]
[1759375461772,7.89589789,223.77,223.76,6.82253565]
[1759375463098,7.89589789,223.77,223.76,2.35346165]
[1759375463994,2.35346165,223.92,223.76,2.35346165]
[1759375463995,10.87647521,223.87,223.76,109.73803556]
[1759375464197,24.29959429,223.88,223.76,109.73803556]
[1759375464198,0.69,223.84,223.76,107.38457391]
[1759375465180,4.75124195,223.87,223.77,4.46887429]
[1759375465394,0.28432314,223.81,223.77,2.35346165]
[1759375465702,0.69,223.8,223.76,2.35346165]
[1759375465879,0.69,223.79,223.78,2.35346165]